[Event "*** Titled Tuesday Blitz"]
[Site "Chess.com"]
[Date "2021.04.06"]
[Round "8"]
[White "TC2304"]
[Black "mr65"]
[Result "0-1"]
[WhiteElo "2273"]
[BlackElo "2163"]
[TimeControl "180+1"]
[EndTime "11:29:24 PDT"]
[Termination "mr65 won on time"]

1. Nf3 {[%clk 0:03:00.9]} 1... Nf6 {[%clk 0:02:59.7]} 2. c4 {[%clk 0:02:59.9]}
2... g6 {[%clk 0:03:00.5]} 3. g3 {[%clk 0:02:59.4]} 3... Bg7 {[%clk 0:03:01.4]}
4. Bg2 {[%clk 0:02:59.3]} 4... O-O {[%clk 0:03:01.3]} 5. O-O {[%clk 0:02:59.9]}
5... d6 {[%clk 0:03:01.4]} 6. Nc3 {[%clk 0:03:00.4]} 6... Nc6 {[%clk 0:03:01.2]}
7. b3 {[%clk 0:02:57.9]} 7... a6 {[%clk 0:03:00.4]} 8. Bb2 {[%clk 0:02:56.6]}
8... Rb8 {[%clk 0:03:00.4]} 9. d4 {[%clk 0:02:53.2]} 9... b5 {[%clk 0:02:57.2]}
10. d5 {[%clk 0:02:40.7]} 10... Na5 {[%clk 0:02:54.4]} 11. cxb5 {[%clk
0:02:33.4]} 11... axb5 {[%clk 0:02:52.2]} 12. Nd4 {[%clk 0:02:18.6]} 12... b4
{[%clk 0:02:44.8]} 13. Ne4 {[%clk 0:02:09.4]} 13... Nxe4 {[%clk 0:02:43.2]} 14.
Bxe4 {[%clk 0:02:10.3]} 14... c5 {[%clk 0:02:36]} 15. dxc6 {[%clk 0:02:05.6]}
15... d5 {[%clk 0:02:35.7]} 16. Bg2 {[%clk 0:01:59]} 16... e5 {[%clk 0:02:35]}
17. Nf3 {[%clk 0:01:54.1]} 17... Nxc6 {[%clk 0:02:34.5]} 18. Rc1 {[%clk
0:01:53.4]} 18... Bb7 {[%clk 0:02:31.4]} 19. Rc5 {[%clk 0:01:48.3]} 19... d4
{[%clk 0:02:26]} 20. Qc2 {[%clk 0:01:39.2]} 20... Rc8 {[%clk 0:02:25.2]} 21. Rc1
{[%clk 0:01:36.4]} 21... e4 {[%clk 0:02:15.3]} 22. Nd2 {[%clk 0:01:28.5]} 22...
d3 {[%clk 0:02:14.4]} 23. exd3 {[%clk 0:01:27.9]} 23... exd3 {[%clk 0:02:14]}
24. Qb1 {[%clk 0:01:25.3]} 24... Bxb2 {[%clk 0:02:12.1]} 25. Qxb2 {[%clk
0:01:25.3]} 25... Na5 {[%clk 0:01:45]} 26. Rxc8 {[%clk 0:01:15]} 26... Bxc8
{[%clk 0:01:44.2]} 27. Qe5 {[%clk 0:01:08.8]} 27... Re8 {[%clk 0:01:38]} 28. Qc5
{[%clk 0:00:48.5]} 28... Nb7 {[%clk 0:01:34.1]} 29. Qxb4 {[%clk 0:00:44.9]}
29... Nd6 {[%clk 0:01:23.9]} 30. Qd4 {[%clk 0:00:21.3]} 30... Nf5 {[%clk
0:01:13.7]} 31. Qxd8 {[%clk 0:00:20.2]} 31... Rxd8 {[%clk 0:01:13.5]} 32. Be4
{[%clk 0:00:20.4]} 32... Ba6 {[%clk 0:01:02.4]} 33. Rc3 {[%clk 0:00:16.7]} 33...
Rd4 {[%clk 0:00:49]} 34. f4 {[%clk 0:00:12.9]} 34... Nd6 {[%clk 0:00:41.5]} 35.
Bf3 {[%clk 0:00:08]} 35... f5 {[%clk 0:00:41.2]} 36. Kf2 {[%clk 0:00:07.9]}
36... Ne4+ {[%clk 0:00:40.8]} 37. Bxe4 {[%clk 0:00:06.9]} 37... fxe4 {[%clk
0:00:40.3]} 38. Ke3 {[%clk 0:00:07.8]} 38... Rd8 {[%clk 0:00:36.2]} 39. Nxe4
{[%clk 0:00:06.4]} 39... Re8 {[%clk 0:00:34.1]} 40. Rc4 {[%clk 0:00:03.6]} 40...
Bxc4 {[%clk 0:00:31.9]} 41. bxc4 {[%clk 0:00:04.5]} 41... Rxe4+ {[%clk
0:00:30.7]} 42. Kxd3 {[%clk 0:00:03.6]} 42... Re1 {[%clk 0:00:28]} 43. c5 {[%clk
0:00:02.6]} 43... Kf8 {[%clk 0:00:27.3]} 0-1

[Event "*** Titled Tuesday Blitz"]
[Site "Chess.com"]
[Date "2021.04.06"]
[Round "8"]
[White "Nicolas_Chess10"]
[Black "SergioGarciaFuentes"]
[Result "1/2-1/2"]
[WhiteElo "2442"]
[BlackElo "2331"]
[TimeControl "180+1"]
[EndTime "11:29:25 PDT"]
[Termination "Game drawn by repetition"]

1. d4 {[%clk 0:03:00.9]} 1... d5 {[%clk 0:02:58.6]} 2. c4 {[%clk 0:02:58.6]}
2... c6 {[%clk 0:02:56.7]} 3. Nc3 {[%clk 0:02:52.3]} 3... Nf6 {[%clk 0:02:51.6]}
4. e3 {[%clk 0:02:51.4]} 4... e6 {[%clk 0:02:37.6]} 5. Nf3 {[%clk 0:02:50.1]}
5... Nbd7 {[%clk 0:02:37.9]} 6. Bd3 {[%clk 0:02:50.1]} 6... dxc4 {[%clk
0:02:33.6]} 7. Bxc4 {[%clk 0:02:51]} 7... b5 {[%clk 0:02:33.8]} 8. Bd3 {[%clk
0:02:51.6]} 8... Bb7 {[%clk 0:02:30.6]} 9. e4 {[%clk 0:02:52]} 9... a6 {[%clk
0:02:26]} 10. e5 {[%clk 0:02:49.7]} 10... Nd5 {[%clk 0:02:25.6]} 11. Nxd5 {[%clk
0:02:49.6]} 11... cxd5 {[%clk 0:02:19.8]} 12. O-O {[%clk 0:02:49.6]} 12... Be7
{[%clk 0:02:19.7]} 13. Bf4 {[%clk 0:02:39.7]} 13... Rc8 {[%clk 0:02:09.5]} 14.
Qd2 {[%clk 0:02:34.3]} 14... O-O {[%clk 0:01:44.3]} 15. Ng5 {[%clk 0:02:22.6]}
15... g6 {[%clk 0:01:29.2]} 16. Qe3 {[%clk 0:02:06]} 16... Rc4 {[%clk
0:00:49.9]} 17. Bxc4 {[%clk 0:01:50.4]} 17... dxc4 {[%clk 0:00:49.8]} 18. Ne4
{[%clk 0:01:35.9]} 18... Nb6 {[%clk 0:00:44.6]} 19. Nc5 {[%clk 0:01:25]} 19...
Bxc5 {[%clk 0:00:41.8]} 20. dxc5 {[%clk 0:01:24.6]} 20... Nd5 {[%clk 0:00:41.9]}
21. Qd4 {[%clk 0:01:17.5]} 21... Nxf4 {[%clk 0:00:35.7]} 22. Qxf4 {[%clk
0:01:17.2]} 22... Qd5 {[%clk 0:00:36.2]} 23. Qg3 {[%clk 0:01:09.4]} 23... Rd8
{[%clk 0:00:34.6]} 24. h4 {[%clk 0:01:06.8]} 24... Qxc5 {[%clk 0:00:33.2]} 25.
Rad1 {[%clk 0:01:04.4]} 25... Rd5 {[%clk 0:00:31.5]} 26. Rxd5 {[%clk 0:00:46.4]}
26... Bxd5 {[%clk 0:00:31.2]} 27. Kh2 {[%clk 0:00:41.5]} 27... b4 {[%clk
0:00:29.8]} 28. Rc1 {[%clk 0:00:35.3]} 28... Qd4 {[%clk 0:00:28.1]} 29. Rc2
{[%clk 0:00:30.9]} 29... Be4 {[%clk 0:00:19.6]} 30. Re2 {[%clk 0:00:30.8]} 30...
Bd3 {[%clk 0:00:18.5]} 31. Rd2 {[%clk 0:00:31]} 31... a5 {[%clk 0:00:18.7]} 32.
h5 {[%clk 0:00:28.7]} 32... Kg7 {[%clk 0:00:18.8]} 33. Qg5 {[%clk 0:00:23.9]}
33... a4 {[%clk 0:00:16.7]} 34. h6+ {[%clk 0:00:21.8]} 34... Kf8 {[%clk
0:00:15.1]} 35. Qf6 {[%clk 0:00:18.4]} 35... Ke8 {[%clk 0:00:15.1]} 36. g3
{[%clk 0:00:15]} 36... c3 {[%clk 0:00:13.4]} 37. bxc3 {[%clk 0:00:14.6]} 37...
bxc3 {[%clk 0:00:13.9]} 38. Rd1 {[%clk 0:00:12.3]} 38... c2 {[%clk 0:00:12.5]}
39. Rc1 {[%clk 0:00:11.7]} 39... a3 {[%clk 0:00:12.6]} 40. Qh8+ {[%clk
0:00:10.6]} 40... Ke7 {[%clk 0:00:12.3]} 41. Qf6+ {[%clk 0:00:10.7]} 41... Ke8
{[%clk 0:00:11.6]} 42. Qh8+ {[%clk 0:00:10.5]} 42... Ke7 {[%clk 0:00:11.8]} 43.
Qf6+ {[%clk 0:00:10.8]} 43... Ke8 {[%clk 0:00:11.9]} 1/2-1/2

[Event "*** Titled Tuesday Blitz"]
[Site "Chess.com"]
[Date "2021.04.06"]
[Round "8"]
[White "MaevskiyNikolay"]
[Black "Redbandit87"]
[Result "1-0"]
[WhiteElo "2569"]
[BlackElo "2413"]
[TimeControl "180+1"]
[EndTime "11:29:26 PDT"]
[Termination "MaevskiyNikolay won by resignation"]

1. Nf3 {[%clk 0:03:00.9]} 1... Nf6 {[%clk 0:02:58.8]} 2. c4 {[%clk 0:03:00.9]}
2... e6 {[%clk 0:02:53.5]} 3. e3 {[%clk 0:02:58.3]} 3... d5 {[%clk 0:02:52.8]}
4. Nc3 {[%clk 0:02:58.1]} 4... Be7 {[%clk 0:02:52.9]} 5. b3 {[%clk 0:02:58]}
5... O-O {[%clk 0:02:53.5]} 6. Bb2 {[%clk 0:02:58.3]} 6... c5 {[%clk 0:02:53.7]}
7. cxd5 {[%clk 0:02:57.8]} 7... exd5 {[%clk 0:02:53.8]} 8. d4 {[%clk 0:02:57.7]}
8... cxd4 {[%clk 0:02:53.3]} 9. Nxd4 {[%clk 0:02:57.6]} 9... Nc6 {[%clk
0:02:53.7]} 10. Be2 {[%clk 0:02:57.6]} 10... Qb6 {[%clk 0:02:44.9]} 11. Nxc6
{[%clk 0:02:56.2]} 11... bxc6 {[%clk 0:02:44.7]} 12. O-O {[%clk 0:02:56.3]}
12... Bf5 {[%clk 0:02:40]} 13. Na4 {[%clk 0:02:56]} 13... Qb7 {[%clk 0:02:33.5]}
14. Rc1 {[%clk 0:02:55.5]} 14... Rac8 {[%clk 0:02:33.2]} 15. Qd4 {[%clk
0:02:54.3]} 15... Rfd8 {[%clk 0:02:29]} 16. Nc5 {[%clk 0:02:53.5]} 16... Bxc5
{[%clk 0:02:28.3]} 17. Rxc5 {[%clk 0:02:52.8]} 17... Bd7 {[%clk 0:01:48.5]} 18.
h4 {[%clk 0:02:46.6]} 18... Be8 {[%clk 0:01:47.6]} 19. h5 {[%clk 0:02:43.6]}
19... h6 {[%clk 0:01:45.3]} 20. Rfc1 {[%clk 0:02:34.9]} 20... Qe7 {[%clk
0:01:45]} 21. Qh4 {[%clk 0:02:11.6]} 21... Rd6 {[%clk 0:01:34.4]} 22. Ba6 {[%clk
0:02:05.9]} 22... Rb8 {[%clk 0:01:26.3]} 23. Bd3 {[%clk 0:02:04.3]} 23... Qd8
{[%clk 0:01:23.9]} 24. Be5 {[%clk 0:01:57.4]} 24... Rb7 {[%clk 0:01:14]} 25.
Bxd6 {[%clk 0:01:36]} 25... Qxd6 {[%clk 0:01:14.9]} 26. f3 {[%clk 0:01:14]}
26... Qe5 {[%clk 0:01:09.8]} 27. Qd4 {[%clk 0:01:02.7]} 27... Qxd4 {[%clk
0:01:01.2]} 28. exd4 {[%clk 0:01:02.6]} 28... Nxh5 {[%clk 0:01:01.5]} 29. Re1
{[%clk 0:00:53.4]} 29... Kf8 {[%clk 0:00:57.7]} 30. Ra5 {[%clk 0:00:47.2]} 30...
Nf4 {[%clk 0:00:56.4]} 31. Ba6 {[%clk 0:00:46.6]} 31... Rc7 {[%clk 0:00:54.7]}
32. Kf2 {[%clk 0:00:43.5]} 32... Ne6 {[%clk 0:00:54.3]} 33. Rd1 {[%clk 0:00:42]}
33... Ke7 {[%clk 0:00:54.4]} 34. Ke3 {[%clk 0:00:39.9]} 34... Kd6 {[%clk
0:00:54.7]} 35. b4 {[%clk 0:00:36.2]} 35... f5 {[%clk 0:00:53.6]} 36. g3 {[%clk
0:00:35.3]} 36... g5 {[%clk 0:00:48.4]} 37. f4 {[%clk 0:00:35.7]} 37... gxf4+
{[%clk 0:00:47.6]} 38. gxf4 {[%clk 0:00:35.8]} 38... Rg7 {[%clk 0:00:47.6]} 39.
Rf1 {[%clk 0:00:29.7]} 39... Rg3+ {[%clk 0:00:46.4]} 40. Rf3 {[%clk 0:00:29.9]}
40... Rg1 {[%clk 0:00:46.2]} 41. Bd3 {[%clk 0:00:28.4]} 41... Re1+ {[%clk
0:00:37.3]} 42. Kd2 {[%clk 0:00:26.7]} 42... Nxd4 {[%clk 0:00:26.7]} 43. Rh3
{[%clk 0:00:26.1]} 43... Rg1 {[%clk 0:00:26.5]} 44. Rxh6+ {[%clk 0:00:25.8]}
44... Kc7 {[%clk 0:00:24.6]} 45. Rxa7+ {[%clk 0:00:25.3]} 45... Kb8 {[%clk
0:00:19.5]} 46. Re7 {[%clk 0:00:25.1]} 46... Rg2+ {[%clk 0:00:18.7]} 47. Kc3
{[%clk 0:00:23.2]} 1-0

[Event "*** Titled Tuesday Blitz"]
[Site "Chess.com"]
[Date "2021.04.06"]
[Round "8"]
[White "GM_LOADING"]
[Black "Agibileg"]
[Result "0-1"]
[WhiteElo "2538"]
[BlackElo "2564"]
[TimeControl "180+1"]
[EndTime "11:29:26 PDT"]
[Termination "Agibileg won by resignation"]

1. d4 {[%clk 0:03:00.9]} 1... c5 {[%clk 0:03:00.8]} 2. d5 {[%clk 0:02:59.5]}
2... Nf6 {[%clk 0:03:00.2]} 3. Nc3 {[%clk 0:02:58.4]} 3... a6 {[%clk 0:02:55.4]}
4. a4 {[%clk 0:02:56.1]} 4... e6 {[%clk 0:02:54.5]} 5. e4 {[%clk 0:02:56]} 5...
exd5 {[%clk 0:02:54.8]} 6. exd5 {[%clk 0:02:56.3]} 6... d6 {[%clk 0:02:54.5]} 7.
Nf3 {[%clk 0:02:56.1]} 7... Be7 {[%clk 0:02:54.1]} 8. Be2 {[%clk 0:02:55.9]}
8... O-O {[%clk 0:02:54.5]} 9. O-O {[%clk 0:02:56.4]} 9... Ne8 {[%clk
0:02:54.8]} 10. Nd2 {[%clk 0:02:52.5]} 10... Nc7 {[%clk 0:02:54.9]} 11. Nc4
{[%clk 0:02:49.1]} 11... Nd7 {[%clk 0:02:55.2]} 12. Bf4 {[%clk 0:02:44.7]} 12...
Ne8 {[%clk 0:02:45.9]} 13. a5 {[%clk 0:02:30.6]} 13... b5 {[%clk 0:02:41.5]} 14.
axb6 {[%clk 0:02:28.4]} 14... Nxb6 {[%clk 0:02:41.9]} 15. Na5 {[%clk 0:02:28.3]}
15... Bf6 {[%clk 0:02:34.9]} 16. Ne4 {[%clk 0:01:37.3]} 16... Bf5 {[%clk
0:02:26.7]} 17. Nc6 {[%clk 0:01:31.8]} 17... Qd7 {[%clk 0:02:24.5]} 18. Ng3
{[%clk 0:01:25.1]} 18... Bg6 {[%clk 0:02:20.2]} 19. c3 {[%clk 0:01:16.8]} 19...
Nc8 {[%clk 0:01:53.7]} 20. Bxa6 {[%clk 0:01:08]} 20... Nc7 {[%clk 0:01:46.5]}
21. Be2 {[%clk 0:01:07.1]} 21... Rxa1 {[%clk 0:01:43.8]} 22. Qxa1 {[%clk
0:01:06.8]} 22... Nxd5 {[%clk 0:01:43.9]} 23. Nb8 {[%clk 0:00:21.8]} 23... Qa7
{[%clk 0:01:24.4]} 24. Qxa7 {[%clk 0:00:08.3]} 24... Nxa7 {[%clk 0:01:25.3]} 25.
Nd7 {[%clk 0:00:08.9]} 25... Nxf4 {[%clk 0:01:25.2]} 26. Nxf8 {[%clk 0:00:09.5]}
26... Nxe2+ {[%clk 0:01:24.3]} 27. Nxe2 {[%clk 0:00:09.5]} 27... Kxf8 {[%clk
0:01:23.6]} 28. Ra1 {[%clk 0:00:10.4]} 28... Nb5 {[%clk 0:01:18.8]} 29. Nf4
{[%clk 0:00:08.6]} 29... Be4 {[%clk 0:01:15.3]} 30. f3 {[%clk 0:00:07.3]} 30...
Bb7 {[%clk 0:01:13.2]} 31. Ra5 {[%clk 0:00:07.5]} 31... Bc6 {[%clk 0:01:10.3]}
32. Ra6 {[%clk 0:00:08]} 32... Bg5 {[%clk 0:01:02.2]} 33. Rxc6 {[%clk
0:00:02.7]} 33... Bxf4 {[%clk 0:01:01.9]} 34. Kf2 {[%clk 0:00:01.9]} 34... Ke7
{[%clk 0:00:58.3]} 35. g3 {[%clk 0:00:02.4]} 35... Bc1 {[%clk 0:00:58.5]} 36.
Rb6 {[%clk 0:00:01.6]} 36... Nc7 {[%clk 0:00:56.3]} 37. f4 {[%clk 0:00:02.4]}
37... f5 {[%clk 0:00:53.1]} 38. Ke2 {[%clk 0:00:02.8]} 38... g5 {[%clk
0:00:48.8]} 39. Rb7 {[%clk 0:00:02.8]} 39... Kd7 {[%clk 0:00:48.4]} 40. fxg5
{[%clk 0:00:03.4]} 40... Bxg5 {[%clk 0:00:48.1]} 41. Rb8 {[%clk 0:00:04]} 41...
Kc6 {[%clk 0:00:46.2]} 42. Rh8 {[%clk 0:00:03.8]} 42... h6 {[%clk 0:00:45.8]}
43. Kd1 {[%clk 0:00:04]} 43... Kd5 {[%clk 0:00:41.1]} 44. Rf8 {[%clk 0:00:03.7]}
44... Ke4 {[%clk 0:00:40.6]} 45. Ke2 {[%clk 0:00:04.2]} 45... d5 {[%clk
0:00:32.5]} 46. Re8+ {[%clk 0:00:03.6]} 46... Nxe8 {[%clk 0:00:31.6]} 0-1

[Event "*** Titled Tuesday Blitz"]
[Site "Chess.com"]
[Date "2021.04.06"]
[Round "8"]
[White "shimastream"]
[Black "Korchmar_Vasiliy"]
[Result "1-0"]
[WhiteElo "2947"]
[BlackElo "2669"]
[TimeControl "180+1"]
[EndTime "11:29:28 PDT"]
[Termination "shimastream won on time"]

1. e4 {[%clk 0:03:00.9]} 1... c5 {[%clk 0:02:59.7]} 2. b3 {[%clk 0:02:58.8]}
2... e6 {[%clk 0:02:58.1]} 3. Nf3 {[%clk 0:02:57.3]} 3... a6 {[%clk 0:02:57.4]}
4. Bb2 {[%clk 0:02:55.8]} 4... Nc6 {[%clk 0:02:57.7]} 5. d4 {[%clk 0:02:51.2]}
5... cxd4 {[%clk 0:02:56.7]} 6. Nxd4 {[%clk 0:02:52.1]} 6... Qf6 {[%clk
0:02:55.7]} 7. c3 {[%clk 0:02:49.7]} 7... Bc5 {[%clk 0:02:54.4]} 8. Be2 {[%clk
0:02:31.3]} 8... Nge7 {[%clk 0:02:52.8]} 9. O-O {[%clk 0:02:30.9]} 9... Ng6
{[%clk 0:02:53.3]} 10. Na3 {[%clk 0:02:11.7]} 10... O-O {[%clk 0:02:38.1]} 11.
Nac2 {[%clk 0:02:11.2]} 11... e5 {[%clk 0:01:57]} 12. Nf5 {[%clk 0:01:55.1]}
12... Nce7 {[%clk 0:01:42.6]} 13. Nfe3 {[%clk 0:01:50.7]} 13... d6 {[%clk
0:01:35.4]} 14. c4 {[%clk 0:01:48.2]} 14... Nf4 {[%clk 0:01:29.6]} 15. Bf3
{[%clk 0:01:47.8]} 15... b5 {[%clk 0:01:22.6]} 16. Kh1 {[%clk 0:01:45.2]} 16...
Be6 {[%clk 0:01:17.6]} 17. cxb5 {[%clk 0:01:39.1]} 17... axb5 {[%clk 0:01:18.5]}
18. b4 {[%clk 0:01:39.4]} 18... Ba7 {[%clk 0:01:09.6]} 19. Qxd6 {[%clk
0:01:35.2]} 19... Neg6 {[%clk 0:01:09.2]} 20. Qd1 {[%clk 0:00:48.7]} 20... Rfd8
{[%clk 0:01:07.9]} 21. Nd5 {[%clk 0:00:49]} 21... Qg5 {[%clk 0:00:55]} 22. Nce3
{[%clk 0:00:48.2]} 22... Rac8 {[%clk 0:00:22.7]} 23. a4 {[%clk 0:00:43.7]} 23...
bxa4 {[%clk 0:00:20]} 24. Rxa4 {[%clk 0:00:43.5]} 24... Bxe3 {[%clk 0:00:18]}
25. fxe3 {[%clk 0:00:41.9]} 25... Nxd5 {[%clk 0:00:16.6]} 26. exd5 {[%clk
0:00:42.3]} 26... Bd7 {[%clk 0:00:16.5]} 27. Ra5 {[%clk 0:00:39.3]} 27... Nh4
{[%clk 0:00:12.2]} 28. d6 {[%clk 0:00:24.7]} 28... Nxf3 {[%clk 0:00:06.1]} 29.
Qxf3 {[%clk 0:00:24.6]} 29... Be6 {[%clk 0:00:04.7]} 30. Bxe5 {[%clk 0:00:21.6]}
30... Qg6 {[%clk 0:00:02.8]} 31. Bg3 {[%clk 0:00:19.1]} 31... Rc2 {[%clk
0:00:02.1]} 32. Rc5 {[%clk 0:00:18.2]} 32... Rd2 {[%clk 0:00:01.7]} 33. b5
{[%clk 0:00:17.9]} 33... h5 {[%clk 0:00:01.5]} 34. Rd1 {[%clk 0:00:10.8]} 34...
Bg4 {[%clk 0:00:01.6]} 35. Rxd2 {[%clk 0:00:10]} 35... Bxf3 {[%clk 0:00:02]} 36.
gxf3 {[%clk 0:00:10.9]} 36... Qb1+ {[%clk 0:00:02.2]} 37. Kg2 {[%clk 0:00:11.4]}
37... Qb4 {[%clk 0:00:02.5]} 38. Rcd5 {[%clk 0:00:11.6]} 38... h4 {[%clk
0:00:02.8]} 39. Bf4 {[%clk 0:00:11.1]} 39... g6 {[%clk 0:00:01.6]} 40. d7 {[%clk
0:00:11.3]} 1-0

[Event "*** Titled Tuesday Blitz"]
[Site "Chess.com"]
[Date "2021.04.06"]
[Round "8"]
[White "Vamostodorecto"]
[Black "MartinHollan"]
[Result "1/2-1/2"]
[WhiteElo "2461"]
[BlackElo "2566"]
[TimeControl "180+1"]
[EndTime "11:29:28 PDT"]
[Termination "Game drawn by repetition"]

1. d4 {[%clk 0:03:00.9]} 1... Nf6 {[%clk 0:02:59.1]} 2. c4 {[%clk 0:03:01.1]}
2... e6 {[%clk 0:02:59.1]} 3. Nc3 {[%clk 0:03:01.6]} 3... Bb4 {[%clk 0:02:58.5]}
4. e3 {[%clk 0:03:02.2]} 4... O-O {[%clk 0:02:57.6]} 5. Bd2 {[%clk 0:03:02.9]}
5... b6 {[%clk 0:02:55.8]} 6. Nf3 {[%clk 0:03:03.5]} 6... Bb7 {[%clk 0:02:55.5]}
7. Bd3 {[%clk 0:03:04.2]} 7... d5 {[%clk 0:02:55.4]} 8. cxd5 {[%clk 0:03:04.9]}
8... exd5 {[%clk 0:02:53.1]} 9. O-O {[%clk 0:03:04.5]} 9... Nbd7 {[%clk
0:02:49.8]} 10. Ne5 {[%clk 0:03:04.5]} 10... Bxc3 {[%clk 0:02:46.5]} 11. Bxc3
{[%clk 0:03:03.1]} 11... Ne4 {[%clk 0:02:46.2]} 12. Rc1 {[%clk 0:02:55.5]} 12...
Nxe5 {[%clk 0:02:37.7]} 13. dxe5 {[%clk 0:02:54.4]} 13... c5 {[%clk 0:02:36.1]}
14. Bxe4 {[%clk 0:02:51]} 14... dxe4 {[%clk 0:02:37]} 15. Qd6 {[%clk 0:02:50.9]}
15... Qxd6 {[%clk 0:02:31.1]} 16. exd6 {[%clk 0:02:50.3]} 16... f6 {[%clk
0:02:31.1]} 17. b4 {[%clk 0:02:46.2]} 17... Rac8 {[%clk 0:01:57.8]} 18. bxc5
{[%clk 0:02:39.7]} 18... Rxc5 {[%clk 0:01:57.7]} 19. Bb4 {[%clk 0:02:39.9]}
19... Rxc1 {[%clk 0:01:47.8]} 20. Rxc1 {[%clk 0:02:40.8]} 20... Rc8 {[%clk
0:01:47.4]} 21. Rd1 {[%clk 0:02:33]} 21... Bc6 {[%clk 0:01:41.3]} 22. f3 {[%clk
0:02:21.5]} 22... exf3 {[%clk 0:01:35.5]} 23. d7 {[%clk 0:02:20.8]} 23... Rd8
{[%clk 0:01:34]} 24. Rd6 {[%clk 0:02:14]} 24... Bxd7 {[%clk 0:01:31.4]} 25. gxf3
{[%clk 0:02:11]} 25... Kf7 {[%clk 0:01:31.2]} 26. a4 {[%clk 0:02:06.6]} 26...
Ke8 {[%clk 0:01:30.6]} 27. a5 {[%clk 0:02:06.5]} 27... Bf5 {[%clk 0:01:06.4]}
28. axb6 {[%clk 0:01:49.5]} 28... Rxd6 {[%clk 0:01:01]} 29. Bxd6 {[%clk
0:01:50.4]} 29... axb6 {[%clk 0:01:00.9]} 30. e4 {[%clk 0:01:46.9]} 30... Bc8
{[%clk 0:00:55.7]} 31. Kf2 {[%clk 0:01:47.2]} 31... Kd7 {[%clk 0:00:53.6]} 32.
Bf8 {[%clk 0:01:45.4]} 32... g6 {[%clk 0:00:52.9]} 33. Ke3 {[%clk 0:01:45]}
33... Ke6 {[%clk 0:00:48.9]} 34. f4 {[%clk 0:01:42.2]} 34... Ba6 {[%clk
0:00:42.4]} 35. h4 {[%clk 0:01:40.7]} 35... Bf1 {[%clk 0:00:40.8]} 36. Kd4
{[%clk 0:01:39.2]} 36... Bg2 {[%clk 0:00:36.6]} 37. Bg7 {[%clk 0:01:36.8]} 37...
b5 {[%clk 0:00:33.6]} 38. e5 {[%clk 0:01:34.5]} 38... f5 {[%clk 0:00:09.6]} 39.
Bf8 {[%clk 0:01:31.5]} 39... Kd7 {[%clk 0:00:08.7]} 40. Kc5 {[%clk 0:01:26]}
40... Bf1 {[%clk 0:00:08.3]} 41. Bd6 {[%clk 0:01:22.8]} 41... Bc4 {[%clk
0:00:06.6]} 42. Bf8 {[%clk 0:01:19.8]} 42... Ke6 {[%clk 0:00:05.8]} 43. Bd6
{[%clk 0:01:18.9]} 43... Bf1 {[%clk 0:00:03.9]} 44. Bf8 {[%clk 0:01:17.1]} 44...
b4 {[%clk 0:00:03.7]} 45. Kxb4 {[%clk 0:01:13.3]} 45... Kd5 {[%clk 0:00:04.3]}
46. Bh6 {[%clk 0:01:11.6]} 46... Ba6 {[%clk 0:00:03.9]} 47. Ka5 {[%clk
0:01:11.5]} 47... Bc8 {[%clk 0:00:04.2]} 48. Kb6 {[%clk 0:01:11.5]} 48... Ke6
{[%clk 0:00:03.2]} 49. Kc7 {[%clk 0:01:11.9]} 49... Bd7 {[%clk 0:00:04.1]} 50.
Kd8 {[%clk 0:01:11.3]} 50... Bc6 {[%clk 0:00:03.9]} 51. Bg5 {[%clk 0:01:11.1]}
51... Bd7 {[%clk 0:00:04.5]} 52. Bh6 {[%clk 0:01:11.1]} 52... Bc6 {[%clk
0:00:04.7]} 53. Kc7 {[%clk 0:01:11.8]} 53... Bd7 {[%clk 0:00:05.1]} 54. Kb6
{[%clk 0:01:12.1]} 54... Be8 {[%clk 0:00:05.5]} 55. Kc5 {[%clk 0:01:10.3]} 55...
Bd7 {[%clk 0:00:06]} 56. Kd4 {[%clk 0:01:06.6]} 56... Be8 {[%clk 0:00:06.4]} 57.
Ke3 {[%clk 0:01:06.9]} 57... Bd7 {[%clk 0:00:06.9]} 58. Kf3 {[%clk 0:01:07.2]}
58... Be8 {[%clk 0:00:07.5]} 59. Kg3 {[%clk 0:01:07.6]} 59... Bd7 {[%clk
0:00:08]} 60. Kf3 {[%clk 0:01:07.2]} 60... Be8 {[%clk 0:00:08.4]} 61. Ke3 {[%clk
0:01:08]} 61... Bd7 {[%clk 0:00:08.9]} 62. Kd4 {[%clk 0:01:08.7]} 62... Be8
{[%clk 0:00:09.8]} 63. Kc5 {[%clk 0:01:09.4]} 63... Bd7 {[%clk 0:00:10.2]} 64.
Kb6 {[%clk 0:01:09.9]} 64... Be8 {[%clk 0:00:10.7]} 65. Kc7 {[%clk 0:01:10.5]}
65... Bd7 {[%clk 0:00:10.6]} 1/2-1/2

[Event "*** Titled Tuesday Blitz"]
[Site "Chess.com"]
[Date "2021.04.06"]
[Round "8"]
[White "Rodalquilar"]
[Black "Sanan_Sjugirov"]
[Result "0-1"]
[WhiteElo "2699"]
[BlackElo "2877"]
[TimeControl "180+1"]
[EndTime "11:29:29 PDT"]
[Termination "Sanan_Sjugirov won on time"]

1. d4 {[%clk 0:03:00.9]} 1... Nf6 {[%clk 0:03:00.1]} 2. Bf4 {[%clk 0:03:01.1]}
2... e6 {[%clk 0:02:58.1]} 3. e3 {[%clk 0:03:01.3]} 3... c5 {[%clk 0:02:58.1]}
4. c3 {[%clk 0:03:01.8]} 4... b6 {[%clk 0:02:53.1]} 5. Nd2 {[%clk 0:02:59.8]}
5... cxd4 {[%clk 0:02:48.1]} 6. exd4 {[%clk 0:02:59.2]} 6... Bb7 {[%clk
0:02:46.8]} 7. Ngf3 {[%clk 0:02:59.4]} 7... Be7 {[%clk 0:02:46]} 8. h3 {[%clk
0:02:59.9]} 8... d6 {[%clk 0:02:45.7]} 9. Bd3 {[%clk 0:03:00.2]} 9... Nbd7
{[%clk 0:02:45.3]} 10. O-O {[%clk 0:03:00.3]} 10... a6 {[%clk 0:02:43.6]} 11. a4
{[%clk 0:03:00.1]} 11... Nf8 {[%clk 0:02:43.1]} 12. Bh2 {[%clk 0:02:59.9]} 12...
Ng6 {[%clk 0:02:43.2]} 13. Nc4 {[%clk 0:02:49.5]} 13... O-O {[%clk 0:02:40.9]}
14. Nfd2 {[%clk 0:02:42.4]} 14... Bc6 {[%clk 0:02:16.3]} 15. Qe2 {[%clk
0:02:28.2]} 15... Qc7 {[%clk 0:02:10.2]} 16. Ne3 {[%clk 0:02:23.1]} 16... Qb7
{[%clk 0:02:06.5]} 17. b4 {[%clk 0:01:58.5]} 17... Rfc8 {[%clk 0:01:14.8]} 18.
c4 {[%clk 0:01:56]} 18... a5 {[%clk 0:00:57.4]} 19. b5 {[%clk 0:01:52.6]} 19...
Bd7 {[%clk 0:00:57.4]} 20. Rac1 {[%clk 0:01:40.8]} 20... Re8 {[%clk 0:00:54.9]}
21. Rfe1 {[%clk 0:01:39.5]} 21... Rac8 {[%clk 0:00:54.5]} 22. Bg3 {[%clk
0:01:31.5]} 22... Bf8 {[%clk 0:00:44.1]} 23. h4 {[%clk 0:01:30.6]} 23... e5
{[%clk 0:00:42.9]} 24. Bxg6 {[%clk 0:00:59.4]} 24... hxg6 {[%clk 0:00:34]} 25.
d5 {[%clk 0:00:59.8]} 25... Rcd8 {[%clk 0:00:27.6]} 26. f3 {[%clk 0:00:33]}
26... Nh5 {[%clk 0:00:24.9]} 27. Bh2 {[%clk 0:00:29.5]} 27... f5 {[%clk
0:00:24.2]} 28. Qf2 {[%clk 0:00:22]} 28... Bc8 {[%clk 0:00:22.7]} 29. g4 {[%clk
0:00:19.9]} 29... Nf6 {[%clk 0:00:20.5]} 30. Qg2 {[%clk 0:00:17.4]} 30... Qf7
{[%clk 0:00:20.2]} 31. Rf1 {[%clk 0:00:16.8]} 31... Be7 {[%clk 0:00:17.9]} 32.
f4 {[%clk 0:00:08.6]} 32... fxg4 {[%clk 0:00:09.5]} 33. fxe5 {[%clk 0:00:08.8]}
33... dxe5 {[%clk 0:00:10.4]} 34. Ne4 {[%clk 0:00:09.4]} 34... Rf8 {[%clk
0:00:06]} 35. c5 {[%clk 0:00:04.4]} 35... bxc5 {[%clk 0:00:04.4]} 36. Ng5 {[%clk
0:00:02.8]} 36... Qe8 {[%clk 0:00:04.6]} 37. Bxe5 {[%clk 0:00:02.9]} 37... Bd6
{[%clk 0:00:04.2]} 0-1